fUSD/lending_fUSD_20241219
["ID","MTS","AMOUNT","RATE_DAILY","PERIOD"]
[345966498,1734573048187,-799.65,0.0002498,2]
[345966499,1734573048199,-150.99,0.0002498,2]
[345966500,1734573048212,-1021316.23528411,0.0002498,2]
[345966501,1734573048224,-23914.32515619,0.0002498,7]
[345966502,1734573048235,-2000.0,0.00024988,120]
[345966503,1734573048247,-500.0,0.00024988,120]
[345966504,1734573048259,-200.0,0.00024988,120]
[345966505,1734573048271,-5419.49051467,0.0002499,2]
[345966506,1734573048283,-584.7865233,0.00024995,2]
[345966507,1734573048295,-1042.08806036,0.00024999,10]
[345966508,1734573048307,-1042.08806036,0.00024999,10]
[345966509,1734573048319,-1042.08806036,0.00024999,10]
[345966510,1734573048331,-24036.21997433,0.00024999,3]
[345966511,1734573048344,-1362.87436855,0.00025,2]
[345966512,1734573048356,-6015045.56856063,0.00025,2]
[345966513,1734573048421,-3573.72902,0.00025,2]
[345966514,1734573048436,-10212.54948447,0.00025,2]
[345966515,1734573048451,-176990.39620507,0.00025,2]
[345966516,1734573048466,-11577.05746378,0.00025,2]
[345966517,1734573049299,-209.48478231,0.000249,4]
[345966518,1734573049309,-132.62321769,0.00025,2]
[345966519,1734573049321,-197336.61575413,0.00025,2]
[345966520,1734573049360,-1055.9639895,0.00025,2]
[345966521,1734573049808,-334.92818003,0.00024172,2]
[345966522,1734573049818,-2444.26640797,0.00025,2]
[345966523,1734573049830,-281.41416519,0.00025,2]
[345966524,1734573049842,-252.22764761,0.00025,2]
[345966525,1734573050085,-291.8672952,0.000249,2]
[345966526,1734573050153,-43.06088483,0.000249,2]
[345966527,1734573050162,-344.36445916,0.00025,2]
[345966528,1734573050176,-300.69,0.00025,2]
[345966529,1734573050187,-6009.34522656,0.00025,2]
[345966530,1734573050204,-571.7467411,0.00024799,2]
[345966531,1734573050214,-135.78012424,0.00025,2]
[345966532,1734573053951,772.0,0.00024,120]
[345966533,1734573110490,2700.0,0.00024,120]
[345966536,1734573819209,161.98,0.00010137,2]
[345966538,1734574060007,450.248,0.00016621,2]
[345966541,1734574173307,2416.847787,0.00016547,2]
[345966550,1734574232080,-425.49,0.0001663,2]
[345966553,1734574232091,-773.37928551,0.00016681,2]
[345966556,1734574232103,-670.41395751,0.00016681,2]
[345966559,1734574232114,-185.06,0.00016771,2]
[345966562,1734574232124,-1005.71890403,0.0001678,2]
[345966563,1734574232134,-451.16878323,0.00016781,7]
[345966566,1734574232339,-8607.7010084,0.00016781,7]
[345966567,1734574232351,-325.67083025,0.00016781,7]
[345966568,1734574232363,-1076.02727181,0.00016781,7]
[345966569,1734574232375,-1304.9999775,0.00016781,7]
[345966570,1734574232386,-252.67642441,0.00016781,7]
[345966571,1734574232398,-1130.0,0.00016781,7]
[345966572,1734574232409,-752.76793986,0.00016781,7]
[345966573,1734574232420,-61134.03317764,0.00016781,7]
[345966574,1734574232430,-138650.34050606,0.00016781,7]
[345966575,1734574232582,-300.03,0.00016781,7]
[345966576,1734574236940,-998.86,0.00016781,7]
[345966611,1734574238008,-311.184893,0.00016781,7]
[345966620,1734574238200,-69739.58460094,0.00016781,7]
[345966621,1734574238210,-8000.00000039,0.00016781,7]
[345966622,1734574238220,-305949.837676,0.00016781,7]
[345966624,1734574238229,-1443.79324296,0.00017594,2]
[345966626,1734574238240,-165.37,0.000179,2]
[345966628,1734574238249,-1443.79324296,0.00018507,2]
[345966630,1734574238259,-525.0,0.00019,5]
[345966632,1734574238269,-1443.79324296,0.00019421,2]
[345966633,1734574238279,-473.54,0.00020314,2]
[345966634,1734574238288,-1443.79324296,0.00020334,2]
[345966635,1734574238298,-500.0,0.00021164,2]
[345966636,1734574238308,-1443.79324296,0.00021247,2]
[345966637,1734574238318,-23900.0,0.00021847,2]
[345966638,1734574238328,-500.0,0.00021917,4]
[345966639,1734574238338,-500.0,0.00021917,4]
[345966640,1734574238348,-517.35570534,0.00021917,4]
[345966641,1734574238366,-611.75066484,0.00021917,4]
[345966642,1734574238376,-500.0,0.00021917,4]
[345966643,1734574238387,-522.06321448,0.00021917,4]
[345966644,1734574238396,-827.74,0.00021917,4]
[345966645,1734574238406,-1508.96,0.00021917,4]
[345966646,1734574238416,-500.0,0.00021917,4]
[345966647,1734574238426,-761.9,0.00021917,4]
[345966648,1734574238441,-1237.84,0.00021917,4]
[345966649,1734574238451,-987.29,0.00021917,4]
[345966650,1734574238461,-500.0,0.00021917,4]
[345966651,1734574238471,-701.7,0.00021917,4]
[345966652,1734574238480,-1107.23,0.00021917,4]
[345966653,1734574238490,-745.89,0.00021917,4]
[345966654,1734574238500,-717.04,0.00021917,4]
[345966655,1734574238510,-2986.4,0.00021917,4]
[345966656,1734574238519,-500.0,0.00021917,4]
[345966657,1734574238529,-1436.21,0.00021917,4]
[345966658,1734574238539,-500.0,0.00021917,4]
[345966659,1734574238548,-722.69,0.00021917,4]
[345966660,1734574238558,-1423.55,0.00021917,4]
[345966661,1734574238568,-500.0,0.00021917,4]
[345966662,1734574238577,-568.49,0.00021917,4]
[345966663,1734574238587,-1872.77,0.00021917,4]
[345966664,1734574238596,-500.0,0.00021917,4]
[345966665,1734574238606,-250.0,0.00021985,2]
[345966666,1734574238615,-236.54258713,0.00021987,2]
[345966667,1734574238624,-200.0,0.0002212,2]
[345966668,1734574238634,-667.9,0.00022138,2]
[345966669,1734574238643,-1443.79324296,0.0002216,2]
[345966670,1734574238654,-500.0,0.00022191,4]
[345966671,1734574238667,-500.0,0.00022191,4]
[345966672,1734574238677,-500.0,0.00022191,4]
[345966673,1734574238690,-827.74,0.00022191,4]
[345966674,1734574238701,-1508.96,0.00022191,4]
[345966675,1734574238710,-761.9,0.00022191,4]
[345966676,1734574238720,-1237.84,0.00022191,4]
[345966677,1734574238729,-987.29,0.00022191,4]
[345966678,1734574238739,-500.0,0.00022191,4]
[345966679,1734574238748,-701.7,0.00022191,4]
[345966681,1734574238758,-1107.23,0.00022191,4]
[345966683,1734574238768,-745.89,0.00022191,4]
[345966685,1734574238778,-717.04,0.00022191,4]
[345966687,1734574238787,-2986.4,0.00022191,4]
[345966688,1734574238797,-500.0,0.00022191,4]
[345966694,1734574239009,-1436.21,0.00022191,4]
[345966695,1734574239020,-500.0,0.00022191,4]
[345966696,1734574239030,-722.69,0.00022191,4]
[345966697,1734574239041,-1423.55,0.00022191,4]
[345966698,1734574239054,-500.0,0.00022191,4]
[345966699,1734574239064,-568.49,0.00022191,4]
[345966700,1734574239074,-1872.77,0.00022191,4]
[345966701,1734574239083,-500.0,0.00022191,4]
[345966702,1734574239094,-400.45,0.00022257,2]
[345966703,1734574239103,-500.0,0.00022465,4]
[345966704,1734574239113,-500.0,0.00022465,4]
[345966705,1734574239123,-500.0,0.00022465,4]
[345966706,1734574239133,-827.74,0.00022465,4]
[345966707,1734574239142,-1508.96,0.00022465,4]
[345966708,1734574239151,-761.9,0.00022465,4]
[345966709,1734574239161,-1237.84,0.00022465,4]
[345966710,1734574239170,-987.29,0.00022465,4]
[345966711,1734574239179,-500.0,0.00022465,4]
[345966712,1734574239191,-701.7,0.00022465,4]
[345966713,1734574239200,-1107.23,0.00022465,4]
[345966714,1734574239211,-745.89,0.00022465,4]
[345966715,1734574239220,-717.04,0.00022465,4]
[345966716,1734574239230,-2986.4,0.00022465,4]
[345966717,1734574239239,-500.0,0.00022465,4]
[345966718,1734574239249,-1436.21,0.00022465,4]
[345966719,1734574239259,-500.0,0.00022465,4]
[345966720,1734574239268,-722.69,0.00022465,4]
[345966721,1734574239278,-1423.55,0.00022465,4]
[345966722,1734574239288,-500.0,0.00022465,4]
[345966723,1734574239298,-568.49,0.00022465,4]
[345966724,1734574239307,-1872.77,0.00022465,4]
[345966725,1734574239317,-500.0,0.00022465,4]
[345966726,1734574239327,-152.22847922,0.00022488,4]
[345966727,1734574239337,-158.46,0.00022494,2]
[345966728,1734574239346,-158.46,0.00022522,2]
[345966729,1734574239355,-158.46,0.0002255,2]
[345966730,1734574239365,-473.54,0.00022578,2]
[345966731,1734574239375,-158.46,0.00022579,2]
[345966732,1734574239384,-250.0,0.00022596,2]
[345966733,1734574239394,-158.46,0.00022607,2]
[345966734,1734574239404,-168.73,0.00022639,2]
[345966735,1734574239414,-150.0,0.00022681,2]
[345966736,1734574239424,-170.1,0.00022726,2]
[345966737,1734574239433,-250.0,0.00022735,2]
[345966738,1734574239446,-2751.0,0.00022735,2]
[345966739,1734574239456,-500.0,0.00022739,4]
[345966740,1734574239465,-500.0,0.00022739,4]
[345966741,1734574239475,-500.0,0.00022739,4]
[345966742,1734574239484,-827.74,0.00022739,4]
[345966743,1734574239494,-1508.96,0.00022739,4]
[345966744,1734574239504,-761.9,0.00022739,4]
[345966745,1734574239514,-1237.84,0.00022739,4]
[345966746,1734574239525,-987.29,0.00022739,4]
[345966747,1734574239534,-500.0,0.00022739,4]
[345966748,1734574239544,-701.7,0.00022739,4]
[345966749,1734574239553,-1107.23,0.00022739,4]
[345966750,1734574239563,-745.89,0.00022739,4]
[345966751,1734574239573,-717.04,0.00022739,4]
[345966752,1734574239582,-2986.4,0.00022739,4]
[345966753,1734574239592,-251.10676561,0.00022739,4]
[345966754,1734574239601,-1436.21,0.00022739,4]
[345966755,1734574239611,-500.0,0.00022739,4]
[345966756,1734574239621,-722.69,0.00022739,4]
[345966757,1734574239631,-1423.55,0.00022739,4]
[345966758,1734574239641,-500.0,0.00022739,4]
[345966759,1734574239651,-568.49,0.00022739,4]
[345966760,1734574239660,-1872.77,0.00022739,4]
[345966761,1734574239670,-500.0,0.00022739,4]
[345966762,1734574239680,-190.37,0.00022774,2]
[345966763,1734574239690,-1000.0,0.00022811,2]
[345966764,1734574239700,-1000.0,0.00022841,2]
[345966765,1734574239710,-158.03,0.00022954,2]
[345966766,1734574239720,-175.0,0.00022957,2]
[345966767,1734574239730,-7946.71,0.00023,2]
[345966768,1734574239739,-500.0,0.00023013,4]
[345966769,1734574239749,-500.0,0.00023013,4]
[345966770,1734574239759,-500.0,0.00023013,4]
[345966771,1734574239769,-827.74,0.00023013,4]
[345966772,1734574239779,-1508.96,0.00023013,4]
[345966773,1734574239789,-761.9,0.00023013,4]
[345966774,1734574239798,-1237.84,0.00023013,4]
[345966775,1734574239808,-987.29,0.00023013,4]
[345966776,1734574239817,-500.0,0.00023013,4]
[345966777,1734574239827,-701.7,0.00023013,4]
[345966778,1734574239836,-1107.23,0.00023013,4]
[345966779,1734574239846,-745.89,0.00023013,4]
[345966780,1734574239856,-717.04,0.00023013,4]
[345966781,1734574239866,-2986.4,0.00023013,4]
[345966782,1734574239875,-1436.21,0.00023013,4]
[345966783,1734574239885,-500.0,0.00023013,4]
[345966784,1734574239894,-722.69,0.00023013,4]
[345966785,1734574239904,-1423.55,0.00023013,4]
[345966786,1734574239913,-500.0,0.00023013,4]
[345966788,1734574239923,-568.49,0.00023013,4]
[345966789,1734574239933,-1872.77,0.00023013,4]
[345966790,1734574239947,-500.0,0.00023013,4]
[345966791,1734574239957,-1000.0,0.00023034,2]
[345966792,1734574239967,-1443.79324296,0.00023074,2]
[345966793,1734574239977,-187.31,0.00023096,2]
[345966794,1734574239987,-5035.27,0.00023132,2]
[345966795,1734574239997,-190.28,0.00023224,30]
[345966796,1734574240007,-189.35,0.00023275,2]
[345966797,1734574240017,-500.0,0.00023287,4]
[345966798,1734574240027,-500.0,0.00023287,4]
[345966799,1734574240038,-500.0,0.00023287,4]
[345966800,1734574240049,-827.74,0.00023287,4]
[345966801,1734574240059,-1508.96,0.00023287,4]
[345966802,1734574240068,-761.9,0.00023287,4]
[345966803,1734574240079,-1237.84,0.00023287,4]
[345966804,1734574240088,-987.29,0.00023287,4]
[345966805,1734574240098,-500.0,0.00023287,4]
[345966806,1734574240107,-701.7,0.00023287,4]
[345966807,1734574240118,-1107.23,0.00023287,4]
[345966808,1734574240128,-745.89,0.00023287,4]
[345966809,1734574240138,-717.04,0.00023287,4]
[345966810,1734574240147,-2986.4,0.00023287,4]
[345966811,1734574240157,-1436.21,0.00023287,4]
[345966812,1734574240167,-500.0,0.00023287,4]
[345966813,1734574240177,-722.69,0.00023287,4]
[345966814,1734574240186,-1423.55,0.00023287,4]
[345966815,1734574240197,-500.0,0.00023287,4]
[345966816,1734574240207,-568.49,0.00023287,4]
[345966817,1734574240217,-1872.77,0.00023287,4]
[345966818,1734574240227,-500.0,0.00023287,4]
[345966819,1734574240237,-521.00536971,0.00023356,2]
[345966820,1734574240247,-530.6,0.00023356,3]
[345966821,1734574240256,-250.0,0.00023356,2]
[345966822,1734574240266,-195.9297855,0.00023356,3]
[345966823,1734574240275,-500.0,0.00023561,4]
[345966825,1734574240285,-500.0,0.00023561,4]
[345966827,1734574240295,-500.0,0.00023561,4]
[345966829,1734574240304,-827.74,0.00023561,4]
[345966831,1734574240314,-1508.96,0.00023561,4]
[345966832,1734574240323,-761.9,0.00023561,4]
[345966833,1734574240334,-1237.84,0.00023561,4]
[345966834,1734574240345,-987.29,0.00023561,4]
[345966835,1734574240354,-500.0,0.00023561,4]
[345966836,1734574240364,-701.7,0.00023561,4]
[345966837,1734574240373,-1107.23,0.00023561,4]
[345966838,1734574240383,-745.89,0.00023561,4]
[345966839,1734574240392,-717.04,0.00023561,4]
[345966840,1734574240403,-2986.4,0.00023561,4]
[345966841,1734574240417,-1436.21,0.00023561,4]
[345966842,1734574240427,-500.0,0.00023561,4]
[345966843,1734574240437,-722.69,0.00023561,4]
[345966844,1734574240454,-1423.55,0.00023561,4]
[345966845,1734574240465,-500.0,0.00023561,4]
[345966846,1734574240474,-568.49,0.00023561,4]
[345966847,1734574240484,-1872.77,0.00023561,4]
[345966848,1734574240494,-500.0,0.00023561,4]
[345966849,1734574240504,-13740.0,0.00023585,2]
[345966850,1734574240514,-150.0,0.00023585,2]
[345966851,1734574240523,-900.718,0.00023585,2]
[345966852,1734574240533,-1170.596,0.00023585,2]
[345966853,1734574240543,-532.1,0.00023714,2]
[345966854,1734574240553,-369.992,0.0002375,2]
[345966855,1734574240562,-3112.0316,0.00023799,2]
[345966856,1734574240572,-194.22628585,0.00023799,2]
[345966857,1734574240582,-500.0,0.00023835,4]
[345966858,1734574240592,-500.0,0.00023835,4]
[345966859,1734574240601,-500.0,0.00023835,4]
[345966860,1734574240611,-827.74,0.00023835,4]
[345966861,1734574240620,-1508.96,0.00023835,4]
[345966863,1734574240630,-761.9,0.00023835,4]
[345966865,1734574240640,-1237.84,0.00023835,4]
[345966866,1734574240649,-987.29,0.00023835,4]
[345966868,1734574240659,-500.0,0.00023835,4]
[345966869,1734574240669,-701.7,0.00023835,4]
[345966870,1734574240679,-1107.23,0.00023835,4]
[345966871,1734574240693,-745.89,0.00023835,4]
[345966872,1734574240703,-717.04,0.00023835,4]
[345966873,1734574240713,-2986.4,0.00023835,4]
[345966874,1734574240722,-1436.21,0.00023835,4]
[345966875,1734574240732,-500.0,0.00023835,4]
[345966876,1734574240741,-722.69,0.00023835,4]
[345966877,1734574240751,-1423.55,0.00023835,4]
[345966878,1734574240761,-568.49,0.00023835,4]
[345966879,1734574240770,-500.0,0.00023835,4]
[345966880,1734574240779,-1872.77,0.00023835,4]
[345966881,1734574240789,-500.0,0.00023835,4]
[345966882,1734574240799,-500.0,0.00023898,4]
[345966883,1734574240808,-937.05,0.00023898,4]
[345966884,1734574240818,-519.13,0.00023898,4]
[345966885,1734574240827,-568.45,0.00023898,4]
[345966886,1734574240836,-1277.82,0.00023898,4]
[345966887,1734574240845,-500.0,0.00023898,4]
[345966888,1734574240855,-500.0,0.00023898,4]
[345966889,1734574240864,-500.0,0.00023898,4]
[345966890,1734574240874,-895.05,0.00023898,4]
[345966891,1734574240884,-1671.52,0.00023898,4]
[345966892,1734574240894,-546.65,0.00023898,4]
[345966893,1734574240903,-145282.9067,0.00023899,2]
[345966894,1734574240912,-6778.5253,0.00023899,2]
[345966895,1734574240922,-1268.8026,0.00023899,2]
[345966896,1734574240931,-5000.0,0.000239,2]
[345966897,1734574240945,-1443.79324296,0.00023987,2]
[345966898,1734574240955,-736.19206959,0.00023987,3]
[345966899,1734574240964,-534.51,0.00023998,4]
[345966900,1734574240974,-500.0,0.00023998,4]
[345966901,1734574240984,-715.6,0.00023998,4]
[345966902,1734574240994,-2704.330555,0.00023998,4]
[345966903,1734574241004,-4085.489534,0.00023998,4]
[345966904,1734574241013,-186.515069,0.00023998,4]
[345966905,1734574241023,-536.4,0.00023998,4]
[345966906,1734574241034,-724.97,0.00023998,4]
[345966907,1734574241044,-765.72,0.00023998,4]
[345966908,1734574241056,-189.92082,0.00023998,4]
[345966909,1734574241066,-448.037134,0.00023998,4]
[345966910,1734574241076,-298.723721,0.00023998,4]
[345966911,1734574241087,-500.0,0.00023998,4]
[345966912,1734574241096,-500.0,0.00023998,4]
[345966913,1734574241106,-847.36,0.00023998,4]
[345966914,1734574241116,-568.93,0.00023998,4]
[345966915,1734574241128,-1323.44,0.00023998,4]
[345966916,1734574241137,-189.920817,0.00023998,4]
[345966917,1734574241146,-298.723721,0.00023998,4]
[345966918,1734574241156,-448.037133,0.00023998,4]
[345966919,1734574241166,-500.0,0.00023998,4]
[345966920,1734574241175,-3520.85,0.00023998,4]
[345966921,1734574241184,-234.36419069,0.00023998,4]
[345966922,1734574241202,-500.0,0.00023998,4]
[345966923,1734574241213,-500.0,0.00023999,4]
[345966924,1734574241223,-402.52889199,0.00023999,4]
[345966925,1734574241232,-500.0,0.00023999,4]
[345966926,1734574241242,-500.0,0.00023999,4]
[345966927,1734574241252,-510.26113765,0.00023999,4]
[345966928,1734574241261,-500.0,0.00023999,4]
[345966929,1734574241270,-500.0,0.00023999,4]
[345966930,1734574241281,-500.0,0.00023999,4]
[345966931,1734574241290,-513.61026636,0.00023999,4]
[345966932,1734574241299,-182.3391742,0.00023999,4]
[345966933,1734574241309,-500.0,0.00023999,4]
[345966934,1734574241319,-500.0,0.00023999,4]
[345966935,1734574241328,-500.0,0.00023999,4]
[345966936,1734574241338,-650.16,0.00023999,4]
[345966937,1734574241348,-500.0,0.00023999,4]
[345966938,1734574241357,-500.0,0.00023999,4]
[345966939,1734574241367,-343.78855134,0.00023999,4]
[345966940,1734574241377,-500.0,0.00023999,4]
[345966941,1734574241386,-500.0,0.00023999,4]
[345966942,1734574241395,-500.0,0.00023999,4]
[345966943,1734574241404,-500.0,0.00023999,4]
[345966944,1734574241414,-500.0,0.00023999,4]
[345966945,1734574241424,-500.0,0.00023999,4]
[345966946,1734574241433,-500.0,0.00023999,4]
[345966947,1734574241452,-500.0,0.00023999,4]
[345966948,1734574241462,-500.0,0.00023999,4]
[345966949,1734574241472,-500.0,0.00023999,4]
[345966950,1734574241482,-500.0,0.00023999,4]
[345966951,1734574241491,-500.0,0.00023999,4]
[345966952,1734574241501,-500.0,0.00023999,4]
[345966953,1734574241510,-500.0,0.00023999,4]
[345966954,1734574241520,-1310.8,0.00023999,4]
[345966955,1734574241529,-500.0,0.00023999,4]
[345966956,1734574241539,-500.0,0.00023999,4]
[345966957,1734574241549,-500.0,0.00023999,4]
[345966958,1734574241558,-1375.39,0.00023999,4]
[345966959,1734574241568,-500.0,0.00023999,4]
[345966960,1734574241578,-500.0,0.00023999,4]
[345966961,1734574241587,-500.0,0.00023999,4]
[345966962,1734574241596,-500.0,0.00023999,4]
[345966963,1734574241606,-500.0,0.00023999,4]
[345966964,1734574241617,-500.0,0.00023999,4]
[345966965,1734574241626,-500.0,0.00023999,4]
[345966966,1734574241636,-500.0,0.00023999,4]
[345966967,1734574241646,-530.57,0.00023999,4]
[345966968,1734574241656,-500.0,0.00023999,4]
[345966969,1734574241668,-500.0,0.00023999,4]
[345966970,1734574241677,-500.0,0.00023999,4]
[345966971,1734574241687,-500.0,0.00023999,4]
[345966972,1734574241699,-500.0,0.00023999,4]
[345966973,1734574241709,-676.51,0.00023999,4]
[345966974,1734574241719,-500.0,0.00023999,4]
[345966975,1734574241728,-500.0,0.00023999,4]
[345966976,1734574241738,-1513.74,0.00023999,4]
[345966977,1734574241749,-500.0,0.00023999,4]
[345966978,1734574241759,-500.0,0.00023999,4]
[345966979,1734574241770,-500.0,0.00023999,4]
[345966980,1734574241779,-500.0,0.00023999,4]
[345966981,1734574241790,-500.0,0.00023999,4]
[345966982,1734574241799,-500.0,0.00023999,4]
[345966983,1734574241809,-500.0,0.00023999,4]
[345966984,1734574241818,-687.41,0.00023999,4]
[345966985,1734574241828,-500.0,0.00023999,4]
[345966986,1734574241837,-500.0,0.00023999,4]
[345966987,1734574241846,-527.71,0.00023999,4]
[345966988,1734574241856,-850.39,0.00023999,4]
[345966989,1734574241866,-500.0,0.00023999,4]
[345966990,1734574241875,-291.62479415,0.00023999,4]
[345966991,1734574241884,-500.0,0.00023999,4]
[345966992,1734574241894,-508.64,0.00023999,4]
[345966993,1734574241903,-978.39,0.00023999,4]
[345966994,1734574241913,-500.0,0.00023999,4]
[345966995,1734574241922,-350.18166073,0.00023999,4]
[345966996,1734574241931,-256.19238849,0.00023999,4]
[345966997,1734574241944,-500.0,0.00023999,4]
[345966998,1734574241954,-500.0,0.00023999,4]
[345966999,1734574241963,-1925.0,0.00023999,4]
[345967000,1734574241972,-500.0,0.00023999,4]
[345967001,1734574241981,-632.81,0.00023999,4]
[345967002,1734574241990,-1000.0,0.00023999,5]
[345967003,1734574242000,-500.0,0.00023999,4]
[345967004,1734574242009,-500.0,0.00023999,4]
[345967005,1734574242019,-500.0,0.00023999,4]
[345967006,1734574242029,-541.01,0.00023999,4]
[345967007,1734574242042,-500.0,0.00023999,4]
[345967008,1734574242052,-648.95,0.00023999,4]
[345967009,1734574242061,-500.0,0.00023999,4]
[345967010,1734574242070,-500.0,0.00023999,4]
[345967011,1734574242080,-500.0,0.00023999,4]
[345967012,1734574242090,-500.0,0.00023999,4]
[345967013,1734574242099,-944.63,0.00023999,4]
[345967014,1734574242108,-535.91,0.00023999,4]
[345967015,1734574242119,-1024.87,0.00023999,4]
[345967016,1734574242129,-49360.0,0.00024,2]
[345967017,1734574242138,-18185.32165816,0.00024,2]
[345967018,1734574242147,-2085.0,0.00024,2]
[345967019,1734574242157,-1355.0,0.00024081,4]
[345967020,1734574242167,-500.0,0.00024081,4]
[345967021,1734574242178,-524.22,0.00024081,4]
[345967022,1734574242187,-500.0,0.00024081,4]
[345967023,1734574242199,-513.06510765,0.00024081,4]
[345967024,1734574242209,-500.0,0.00024081,4]
[345967025,1734574242219,-671.81,0.00024081,4]
[345967026,1734574242228,-521.4,0.00024081,4]
[345967027,1734574242237,-507.54319225,0.00024081,4]
[345967028,1734574242247,-500.0,0.00024081,4]
[345967029,1734574242256,-669.08,0.00024081,4]
[345967030,1734574242265,-511.82960657,0.00024081,4]
[345967031,1734574242275,-516.09093348,0.00024081,4]
[345967032,1734574242284,-500.0,0.00024081,4]
[345967033,1734574242294,-522.14916001,0.00024081,4]
[345967034,1734574242303,-500.0,0.00024081,4]
[345967035,1734574242313,-500.0,0.00024081,4]
[345967036,1734574242323,-512.4029638,0.00024081,4]
[345967037,1734574242332,-500.0,0.00024081,4]
[345967038,1734574242342,-509.4821632,0.00024081,4]
[345967039,1734574242351,-1294.83,0.00024081,4]
[345967040,1734574242362,-500.0,0.00024081,4]
[345967041,1734574242371,-500.0,0.00024081,4]
[345967042,1734574242381,-500.0,0.00024081,4]
[345967043,1734574242390,-500.0,0.00024081,4]
[345967044,1734574242400,-564.88578206,0.00024081,4]
[345967045,1734574242410,-708.16,0.00024081,4]
[345967046,1734574242420,-500.0,0.00024081,4]
[345967047,1734574242431,-500.0,0.00024081,4]
[345967048,1734574242445,-474.60711528,0.00024081,4]
[345967049,1734574242455,-500.0,0.00024081,4]
[345967050,1734574242465,-391.55266526,0.00024081,4]
[345967051,1734574242475,-676.67,0.00024081,4]
[345967052,1734574242485,-500.0,0.00024081,4]
[345967053,1734574242495,-500.0,0.00024081,4]
[345967054,1734574242505,-500.0,0.00024081,4]
[345967055,1734574242515,-500.0,0.00024081,4]
[345967056,1734574242524,-500.0,0.00024081,4]
[345967057,1734574242533,-500.0,0.00024081,4]
[345967058,1734574242542,-915.15,0.00024081,4]
[345967059,1734574242551,-500.0,0.00024081,4]
[345967060,1734574242561,-816.64,0.00024081,4]
[345967061,1734574242570,-500.0,0.00024081,4]
[345967062,1734574242578,-500.0,0.00024081,4]
[345967063,1734574242587,-500.0,0.00024081,4]
[345967064,1734574242596,-440.62088184,0.00024081,4]
[345967065,1734574242605,-655.94,0.00024081,4]
[345967066,1734574242615,-500.0,0.00024081,4]
[345967067,1734574242624,-1066.56,0.00024081,4]
[345967068,1734574242633,-323.18827941,0.00024081,4]
[345967069,1734574242643,-626.5,0.00024081,4]
[345967070,1734574242653,-1081.17,0.00024081,4]
[345967071,1734574242662,-500.0,0.00024081,4]
[345967072,1734574242672,-500.0,0.00024081,4]
[345967073,1734574242681,-500.0,0.00024081,4]
[345967074,1734574242695,-500.0,0.00024081,4]
[345967075,1734574242704,-519.50325821,0.00024081,4]
[345967076,1734574242714,-500.0,0.00024081,4]
[345967077,1734574242724,-670.07,0.00024081,4]
[345967078,1734574242733,-500.0,0.00024081,4]
[345967079,1734574242743,-500.0,0.00024081,4]
[345967080,1734574242753,-559.95,0.00024081,4]
[345967082,1734574242763,-500.0,0.00024081,4]
[345967083,1734574242772,-500.0,0.00024081,4]
[345967084,1734574242781,-500.0,0.00024081,4]
[345967085,1734574242791,-737.51,0.00024081,4]